[Event "FIDE WSTC Open 50 2025"]
[Site "Prague"]
[Date "2025.02.23"]
[Round "6.6"]
[White "Kaidanov, Gregory"]
[Black "Kotsur, Pavel"]
[Result "1-0"]
[Annotator "TA"]
[ECO "C50"]
[WhiteElo "2513"]
[BlackElo "2478"]
[PlyCount "109"]
[EventDate "2025.02.17"]
[EventType "team-tourn"]
[EventCountry "CZE"]
[SourceTitle "playchess.com"]
[Source "ChessBase"]
[SourceQuality "1"]
[TimeControl "40/5400+30:1800+30"]

{[%evp 10,109,20,10,29,26,27,13,22,13,17,12,24,5,21,15,16,7,17,-7,0,-1,0,0,26,0,3,-28,-9,-16,10,0,0,0,0,-34,0,-47,0,-18,0,-6,-23,-16,0,-15,-16,-41,-36,-32,-46,-52,0,-62,-43,-54,-55,-53,-61,-67,-50,-42,-31,-82,-50,-22,0,0,0,0,0,0,0,0,0,0,0,0,0,0,0,0,0,0,306,298,330,322,336,320,342,296,304,319,528,520,497,498,483,363,614,529]} 1. e4 {[%emt 0:00:09]} e5 {[%emt 0:00:33]} 2. Nf3 {[%emt 0:00:07]} Nc6 {[%emt 0:00:03]} 3. Bc4 {[%emt 0:00:06]} Bc5 {[%emt 0:00:57]} 4. d3 {[%emt 0:00:30]} Nf6 {[%emt 0:00:41]} 5. Bg5 {[%emt 0:00:23]} h6 {[%emt 0:01:48]} 6. Bh4 {[%emt 0:01:12]} Be7 {[%emt 0:02:17] C50: Hungarian Defence and Giuoco Pianissimo.} 7. Bg3 {[%emt 0:06:12]} d6 {[%emt 0:00:54]} 8. a3 {[%emt 0:02:07]} O-O {[%emt 0:07:06] The position is equal.} 9. h3 {[%emt 0:06:18]} Nh7 {[%emt 0:10:24]} 10. O-O {[%emt 0:04:29]} Kh8 $146 {[%emt 0:04:19]} (10... Ng5 11. Nbd2 Be6 12. Bxe6 Nxe6 13. c3 Bg5 14. Nc4 Bf4 15. Bh4 Bg5 16. Bxg5 Nxg5 {1-0 Eljanov,P (2706)-Wen,Y (2585) CHN-chT China 2018 (15.2)}) 11. Nc3 {[%emt 0:03:50]} f5 {[%emt 0:04:41]} 12. exf5 {[%emt 0:01:02]} Bxf5 {[%emt 0:00:04]} 13. Nd5 {[%emt 0:01:56]} Nf6 {[%emt 0:01:30]} 14. Nxe7 {[%emt 0:02:34]} Nxe7 {[%emt 0:09:33]} 15. Re1 {[%emt 0:03:23]} Qc8 {[%emt 0:09:38]} 16. Nd2 {[%emt 0:12:16]} Bg6 {[%emt 0:04:11]} 17. Bh2 {[%emt 0:03:58]} Qd7 {[%emt 0:12:47]} 18. Bb3 {[%emt 0:04:40]} Bh5 {[%emt 0:01:42]} 19. f3 {[%emt 0:01:28]} Bf7 {[%emt 0:00:23]} 20. Bxf7 {[%emt 0:03:49]} Rxf7 {[%emt 0:00:03]} 21. Nc4 {[%emt 0:03:17]} Nf5 {[%emt 0:02:26][%cal Be7f5,Bf5h4,Bh4g6][%mdl 32]} 22. c3 {[%emt 0:01:16][%cal Oh2e5]} Re8 {[%emt 0:02:25]} 23. Qd2 {[%emt 0:02:34]} (23. Ne3 $11) 23... b6 {[%emt 0:01:17]} (23... Nd5 $15 {is superior.}) 24. Bxe5 {[%emt 0:06:43]} dxe5 {[%emt 0:00:32]} 25. Nxe5 {[%emt 0:00:06] [#]} Rxe5 {[%emt 0:00:27]} 26. Rxe5 {[%emt 0:00:05]} Nh4 {[%emt 0:01:00]} 27. Rf1 {[%emt 0:13:58]} Ng6 {[%emt 0:04:05][%mdl 1024] Black has compensation.} 28. Ree1 {[%emt 0:00:09]} Nh5 {[%emt 0:07:07]} 29. d4 {[%emt 0:02:16]} Nhf4 {[%emt 0:01:42] and ...Nh4 should not be overlooked Against Qe2} 30. Re4 {[%emt 0:00:51]} Qf5 {[%emt 0:02:30]} (30... c5 $15) 31. Rf2 {[%emt 0:03:25]} (31. Qf2 $11) 31... h5 $15 {[%emt 0:02:18]} 32. Re8+ {[%emt 0:01:29]} Kh7 {[%emt 0:00:17]} 33. Qc2 {[%emt 0:00:31]} Qg5 {[%emt 0:00:56]} 34. Kh1 {[%emt 0:01:27]} Qg3 {[%emt 0:01:16]} 35. Rf1 $1 {[%emt 0:00:28]} h4 {[%emt 0:01:17]} 36. Rfe1 {[%emt 0:02:14] [#]} (36. b4 $15) 36... Rf5 $1 {[%emt 0:02:14][%cal Oh7h6]} 37. R1e5 $1 {[%emt 0:01:19]} Rxe5 {[%emt 0:01:21]} (37... Rf6 {is more complex.} 38. Rd8 Kh6 39. Ree8 Nxh3 40. gxh3 Rxf3 41. Qg2 Nf4) 38. Rxe5 {[%emt 0:00:28]} Kh6 {[%emt 0:00:14]} 39. Re4 {[%emt 0:00:23]} Qg5 {[%emt 0:00:54]} 40. Kh2 {[%emt 0:01:58]} Qf6 {[%emt 0:01:10]} 41. Qd2 {[%emt 0:30:36]} Kh7 {[%emt 0:30:21]} 42. Qe3 {[%emt 0:00:00]} Qf5 {[%emt 0:00:00]} 43. c4 {[%emt 0:00:00]} Qg5 {[%emt 0:00:00][%csl Gf4][%cal Rg5g2]} 44. Qd2 {[%emt 0:00:00]} a5 {[%emt 0:00:00]} 45. b4 {[%emt 0:00:00]} a4 {[%emt 0:00:00]} 46. d5 {[%emt 0:00:00]} Qf6 $2 {[%emt 0:00:00][%mdl 8192] [#]} (46... Qg3+ $11 47. Kh1 Nxh3 48. gxh3 Qxf3+ 49. Qg2 Qxa3) 47. c5 $1 $18 {[%emt 0:00:00]} bxc5 {[%emt 0:00:00]} 48. bxc5 {[%emt 0:00:00][%cal Od5d6]} Qg5 {[%emt 0:00:00]} 49. d6 {[%emt 0:00:00]} (49. Rxa4 Qg3+ 50. Kh1 Nxh3 51. gxh3 Qxh3+ 52. Kg1 Qxf3 $16) 49... cxd6 {[%emt 0:00:00]} 50. cxd6 {[%emt 0:00:00]} Qg3+ {[%emt 0:00:00]} 51. Kh1 {[%emt 0:00:00][%cal Od6d7]} Nxh3 $2 {[%emt 0:00:00]} (51... Nxg2 {might work better.} 52. Qxg2 Qxd6) 52. d7 $1 {[%emt 0:03:14][%cal Oe4e2] Threatens to win with Re2!.} (52. gxh3 Qxf3+ (52... Qxh3+ 53. Kg1 $16) 53. Qg2 Qd1+ 54. Qg1 Qf3+ 55. Qg2 Qd1+ 56. Qg1 Qf3+ 57. Qg2 $11) 52... Nf2+ {[%emt 0:03:51] [#]} 53. Qxf2 $3 {[%emt 0:00:31][%mdl 512]} Qxf2 {[%emt 0:00:03]} 54. d8=Q {[%emt 0:00:09] Dodges h3} (54. d8=B h3 55. Rg4 Nf4 (55... hxg2+ $2 56. Rxg2 Qf1+ 57. Kh2 $19) 56. gxh3 Qxf3+ 57. Kg1 Nxh3+ (57... Qxh3 58. Rh4+ $17) (57... Qe3+ {gets mated.} 58. Kh2 Qxh3+ 59. Kg1 Qxg4+ 60. Kf2 Qe2+ 61. Kg3 Nh5+ 62. Kh3 Qf3+ 63. Kh2 Qf2+ 64. Kh3 Qg3#) 58. Kh2 Qxg4 59. Bc7 g5 60. Bg3 Nf4 61. Bxf4 gxf4 (61... Qxf4+ 62. Kh1 Qd2 63. Kg1 g4 64. Kf1 g3 65. Kg1 Qh2+ 66. Kf1 Qf2#) 62. Kh1 f3 63. Kh2 Qg2#) 54... Qg3 {[%emt 0:03:11] Prevents Qg5} (54... h3 55. Qg5 (55. Rxa4 $2 Qxg2#) 55... hxg2+ 56. Qxg2 Qc5 57. Qh3+ (57. Rxa4 Qc1+ 58. Qg1 Qc6 $18) 57... Kg8 58. Re8+ (58. Rxa4 Qc1+ 59. Kh2 Qc2+ 60. Qg2 Qxa4 $11) 58... Nf8 59. Qe6+ Kh7 60. Qe4+ Kh8) 55. Qd7 {[%emt 0:01:04] Weighted Error Value: White=0.08 (flawless) /Black=0.31  Loses game:     	---       	Black=1      Mistake:       	White=3     	Black=4      Inaccurate:     	White=3     	Black=4      OK:         	White=13    	Black=18     Best:        	White=3     	Black=2      Strong:       	White=4     	---        Brilliant:      	White=1     	Black=1} ({Not} 55. Rxa4 Qe1+ 56. Kh2 Qg3+ 57. Kh1 Qe1+ 58. Kh2 Qg3+ 59. Kh1 $11) 1-0

[Event "FIDE WSTC Open 50 2025"]
[Site "Prague"]
[Date "2025.02.23"]
[Round "6.7"]
[White "Temirbayev, Serikbay"]
[Black "Shabalov, Alexander"]
[Result "0-1"]
[Annotator "TA"]
[ECO "E41"]
[WhiteElo "2372"]
[BlackElo "2471"]
[PlyCount "76"]
[EventDate "2025.02.17"]
[EventType "team-tourn"]
[EventCountry "CZE"]
[SourceTitle "playchess.com"]
[Source "ChessBase"]
[SourceQuality "1"]
[TimeControl "40/5400+30:1800+30"]

{[%evp 17,76,-21,8,0,8,-8,14,0,18,2,10,0,5,0,37,0,0,0,0,-7,53,-24,0,-21,-17,-22,-22,-11,-8,-310,-293,-314,-320,-327,-325,-284,-289,-485,-511,-1185,-60,-69,-54,-132,-139,-128,-33,-30,0,-103,-100,-110,-91,-29986,-29987,-29992,-29993,-29993,-29994,-29994,-29995]} 1. d4 {[%emt 0:00:04]} Nf6 {[%emt 0:00:04]} 2. c4 {[%emt 0:00:19]} e6 {[%emt 0:00:06]} 3. Nc3 {[%emt 0:00:24]} Bb4 {[%emt 0:00:47]} 4. e3 {[%emt 0:00:48]} c5 {[%emt 0:02:41]} 5. Nf3 {[%emt 0:07:22]} b6 {[%emt 0:02:59]} 6. Bd3 {[%emt 0:05:41]} Bb7 {[%emt 0:00:05]} 7. O-O {[%emt 0:01:16]} O-O {[%emt 0:00:05]} 8. a3 {[%emt 0:03:46]} Bxc3 {[%emt 0:06:51]} 9. bxc3 {[%emt 0:00:32]} d6 {[%emt 0:00:05] 9...Be4 is not played anymore.} 10. a4 {[%emt 0:05:18] E43: Nimzo-Indian: Rubinstein: 4...b6.} Nc6 {[%emt 0:00:33]} 11. Nd2 {[%emt 0:10:23]} Re8 $146 {[%emt 0:05:32]} (11... Qe7 12. f4 Rfe8 13. Ba3 Ba6 14. Kh1 Rac8 15. e4 Nd7 16. e5 dxe5 17. fxe5 Qh4 {0-1 Fataliyeva,U (2301)-Svane,F (2421) EU-ch qual Online 2020 (9)}) 12. Nb3 {[%emt 0:04:00] The position is equal.} a5 {[%emt 0:03:46]} 13. Ba3 {[%emt 0:05:49]} Ne7 {[%emt 0:09:08]} 14. f3 {[%emt 0:03:52]} Ng6 {[%emt 0:01:16]} 15. Re1 {[%emt 0:09:03]} h5 {[%emt 0:07:55]} 16. Bf1 {[%emt 0:02:11]} h4 {[%emt 0:00:14]} 17. e4 {[%emt 0:02:00]} Nh5 {[%emt 0:01:56]} 18. Bc1 {[%emt 0:00:12] Prevents Qg5} f5 {[%emt 0:06:07]} (18... e5 $11) 19. Be3 {[%emt 0:13:14]} (19. dxc5 $14 h3 (19... dxc5 20. Qxd8 Raxd8 21. Bg5 $14) 20. cxd6 (20. Qxd6 hxg2 21. Bxg2 Qh4 $11)) 19... Qf6 {[%emt 0:05:28]} 20. Nd2 {[%emt 0:01:13]} Rab8 {[%emt 0:03:55]} 21. Rb1 {[%emt 0:03:08]} Bc6 {[%emt 0:00:52]} 22. Bf2 {[%emt 0:02:24]} Ngf4 {[%emt 0:01:15]} 23. e5 $2 {[%emt 0:04:40][%mdl 8192]} (23. d5 $11 {and White has nothing to worry.} Bd7 24. dxe6 Bxe6 25. exf5 Bxf5 26. Ne4 Bxe4 27. Rxe4) 23... Qg5 $19 {[%emt 0:05:44]} 24. Kh1 {[%emt 0:00:16] [#]} Ng3+ $1 {[%emt 0:02:19][%mdl 512]} 25. Bxg3 {[%emt 0:01:02]} hxg3 {[%emt 0:00:06]} 26. h3 {[%emt 0:05:36]} Kf7 {[%emt 0:01:44]} 27. Rb2 $2 {[%emt 0:02:27]} (27. exd6 {was forced.} Rh8 28. Re2) 27... Rh8 {[%emt 0:03:15][%cal Oh8h3] ( -> ...Rxh3+!)} 28. Nb1 {[%emt 0:00:03]} (28. Re2 $142 Nxe2 29. Qxe2) 28... Rh4 $2 {[%emt 0:10:46]} (28... Rxh3+ $19 29. gxh3 Qh5) 29. d5 $1 $15 {[%emt 0:04:22]} exd5 {[%emt 0:02:38] Black has space advantage and is better Black has more active pieces.} 30. cxd5 {[%emt 0:00:18]} (30. exd6 $15 Kg6 31. Na3) 30... Bxd5 $17 {[%emt 0:00:26]} (30... Nxd5 31. Bb5 Nf4 (31... Ne3 32. Rxe3 Qxe3 33. Bxc6 $16) 32. Bxc6 $11) 31. exd6 {[%emt 0:00:17] [#]} Qh5 {[%emt 0:01:38]} ({Black should play} 31... Rd8 $1 $17 {and ...Rh6 would now be decisive} 32. Rd2 Rxd6) 32. Kg1 $15 {[%emt 0:00:30]} Kg6 {[%emt 0:02:37][%cal Od5f3]} 33. d7 {[%emt 0:00:27]} (33. c4 $1 $11 Bxf3 34. Qb3 (34. gxf3 $2 Nxh3+ 35. Bxh3 Rxh3 $19)) 33... Kh7 $36 {[%emt 0:01:44][%cal Od5f3][%mdl 2048] Black is on the roll. The board is on fire.} 34. Re5 {[%emt 0:02:51] [#]} ({Don't go for} 34. c4 $2 Bxf3 35. Qd2 (35. d8=Q $2 Rxd8 36. Qc2 Bxg2 $19) (35. gxf3 $2 Nxh3+ 36. Bxh3 Rxh3 $19) 35... Nxh3+ (35... Rd8 36. Rb3 $17) 36. gxh3 Rxh3 (36... Rd4 37. Qe3 $16) 37. Bxh3 (37. d8=B $2 Rh1#) 37... Qxh3 $19) 34... Bxf3 {[%emt 0:01:49]} 35. d8=Q {[%emt 0:00:03][%mdl 8192]} (35. Qc2 $17 Bd1 36. Qxf5+ Qxf5 37. Rxf5 Bxa4 38. Rxb6) 35... Rxd8 {[%emt 0:01:13] Black mates.} 36. Qxd8 {[%emt 0:00:04] [#]} Nxh3+ $1 {[%emt 0:00:27][%mdl 512]} 37. gxh3 {[%emt 0:00:10]} Rxh3 {[%emt 0:00:04]} 38. Bxh3 {[%emt 0:00:52]} Qxh3 {[%emt 0:00:10] Weighted Error Value: White=0.57/Black=0.29 (precise)   Loses game:     	White=2     	---        Missed win:     	---       	Black=1      Mistake:       	White=5     	Black=2      Inaccurate:     	White=1     	Black=2      OK:         	White=5     	Black=5      Best:        	White=2     	Black=2      Strong:       	White=1     	---        Brilliant:      	---       	Black=1} 0-1

[Event "FIDE WSTC Open 50 2025"]
[Site "Prague"]
[Date "2025.02.23"]
[Round "6.8"]
[White "Novikov, Igor"]
[Black "Tikzhanov, Yerlan"]
[Result "1-0"]
[Annotator "TA"]
[ECO "E16"]
[WhiteElo "2490"]
[BlackElo "2323"]
[PlyCount "85"]
[EventDate "2025.02.17"]
[EventType "team-tourn"]
[EventCountry "CZE"]
[SourceTitle "playchess.com"]
[Source "ChessBase"]
[SourceQuality "1"]
[TimeControl "40/5400+30:1800+30"]

{[%evp 10,85,16,17,16,12,15,18,14,15,16,13,24,14,16,27,61,45,55,26,17,40,33,28,21,22,91,84,94,95,97,91,100,62,133,152,152,102,99,89,167,197,159,0,209,210,207,191,239,225,218,205,227,209,215,204,237,134,128,133,131,81,139,129,168,110,129,137,194,171,310,285,295,307,977,978,2123,970]} 1. d4 {[%emt 0:00:03]} Nf6 {[%emt 0:00:10]} 2. c4 {[%emt 0:00:07]} e6 {[%emt 0:00:13]} 3. Nf3 {[%emt 0:00:09]} Bb4+ {[%emt 0:00:14]} 4. Bd2 {[%emt 0:00:16]} Qe7 {[%emt 0:00:11]} 5. g3 {[%emt 0:00:35]} Bxd2+ {[%emt 0:00:55]} 6. Qxd2 {[%emt 0:00:48]} Nc6 {[%emt 0:00:26] E11: Bogo-Indian.} 7. Nc3 {[%emt 0:08:56]} d5 {[%emt 0:00:32]} 8. cxd5 {[%emt 0:03:32]} exd5 {[%emt 0:00:12] The position is equal.} 9. Bg2 {[%emt 0:00:11]} Bg4 {[%emt 0:00:40]} 10. O-O {[%emt 0:01:31]} O-O {[%emt 0:00:17]} 11. Rac1 {[%emt 0:06:11]} Rad8 {[%emt 0:03:51]} 12. e3 {[%emt 0:01:26]} Bxf3 $146 {[%emt 0:01:03]} ({Predecessor:} 12... Ne4 13. Nxe4 dxe4 14. Ne1 Nb4 15. a3 Nd5 16. Nc2 c5 17. Qe1 c4 18. Nb4 Nxb4 19. Qxb4 Qxb4 20. axb4 {1-0 Chandra,A (2440)-Friedel,J (2505) Saint Louis GM 2014 (5)}) 13. Bxf3 {[%emt 0:00:05]} a6 {[%emt 0:00:33]} 14. Qc2 {[%emt 0:05:52]} Na7 {[%emt 0:01:31] [#]} 15. b4 $1 {[%emt 0:01:05]} c6 {[%emt 0:04:09]} 16. Qb3 {[%emt 0:12:55]} Nc8 {[%emt 0:03:25]} 17. a4 {[%emt 0:00:45][%cal Ba2a4,Ba4a5][%mdl 32]} b5 {[%emt 0:00:28]} (17... Nd6 $11 {keeps the balance.}) 18. Ne2 $16 {[%emt 0:02:07]} Rd6 {[%emt 0:01:27] [#]} 19. a5 $1 {[%emt 0:03:15] Prevents Nb6} g5 {[%emt 0:04:07]} 20. Rc2 {[%emt 0:01:11]} h5 {[%emt 0:01:12]} 21. Nc1 {[%emt 0:03:04]} Nd7 {[%emt 0:14:30]} (21... h4 $14) 22. Bxh5 {[%emt 0:05:36] White is more active.} Rh6 {[%emt 0:10:57]} 23. Bf3 {[%emt 0:08:31]} (23. Bd1 $142) 23... Kg7 {[%emt 0:05:17]} 24. Bg2 {[%emt 0:06:54]} g4 {[%emt 0:00:51]} (24... Rfh8 $16) 25. Nd3 $18 {[%emt 0:03:34]} Rfh8 {[%emt 0:02:51]} 26. Rfc1 $2 {[%emt 0:02:50]} (26. Nf4 $16) 26... Na7 $2 {[%emt 0:04:03]} (26... Rxh2 $11 {and Black has nothing to worry.} 27. Nf4 (27. Rxc6 Rxg2+ 28. Kxg2 Qe4+ 29. Kf1 Ne7 $16) 27... Nd6) 27. h4 {[%emt 0:00:30][%cal Og2d5]} gxh3 {[%emt 0:00:34]} 28. Bf3 {[%emt 0:00:06]} Rf6 {[%emt 0:06:49]} (28... Qf6 {was worth a try.} 29. Nf4 h2+ 30. Kh1 Qd6) 29. Nf4 {[%emt 0:00:34]} h2+ {[%emt 0:03:07]} 30. Kh1 {[%emt 0:02:53]} Rfh6 {[%emt 0:00:41]} 31. Nd3 {[%emt 0:00:35]} Qf6 {[%emt 0:01:08]} 32. Bg2 {[%emt 0:00:33]} Qf5 {[%emt 0:01:04]} 33. Nc5 {[%emt 0:06:40]} ({White should try} 33. e4 $18 dxe4 34. Nf4) 33... Nxc5 {[%emt 0:07:17]} 34. dxc5 {[%emt 0:00:06]} Re8 {[%emt 0:00:34]} 35. Qc3+ {[%emt 0:01:02]} (35. Re1 $142) 35... Kg8 {[%emt 0:01:00]} (35... Qe5 $142) 36. Rd1 {[%emt 0:01:44]} Nc8 {[%emt 0:02:16]} 37. Rd4 {[%emt 0:00:36]} (37. e4 $18 dxe4 38. Re2) 37... Ne7 {[%emt 0:01:16]} 38. e4 {[%emt 0:04:10]} Qe6 {[%emt 0:02:37]} (38... Qf6 $16) 39. Rc1 {[%emt 0:02:41]} f5 {[%emt 0:11:30]} (39... Qf6 $142 40. Qd2 (40. exd5 Nxd5 41. Bxd5 cxd5 $16) 40... Rh5) 40. exd5 {[%emt 0:00:52]} Nxd5 {[%emt 0:00:27]} 41. Qd2 {[%emt 0:30:34][%cal Rd4d5] Rxd5 would now be deadly.} Rh7 $2 {[%emt 0:31:44]} (41... Kf8 42. Bxd5 cxd5) 42. Rxd5 {[%emt 0:00:33]} Rh6 43. Rd4 {Weighted Error Value: White=0.19 (very precise) /Black=0.59  Loses game:     	---       	Black=1      Mistake:       	White=5     	Black=8      Inaccurate:     	White=2     	Black=3      OK:         	White=17    	Black=7      Best:        	White=3     	Black=2      Strong:       	White=1     	---} 1-0

[Event "FIDE WSTC Open 50 2025"]
[Site "Prague"]
[Date "2025.02.23"]
[Round "6.9"]
[White "Hjartarson, Johann"]
[Black "Adams, Michael"]
[Result "0-1"]
[Annotator "TA"]
[ECO "C89"]
[WhiteElo "2464"]
[BlackElo "2664"]
[PlyCount "72"]
[EventDate "2025.02.17"]
[EventType "team-tourn"]
[EventCountry "CZE"]
[SourceTitle "playchess.com"]
[Source "ChessBase"]
[SourceQuality "1"]
[TimeControl "40/5400+30:1800+30"]

{[%evp 22,72,26,39,41,35,55,-3,0,-21,-14,-122,-116,-119,-114,-130,-111,-113,-120,-139,-60,-62,-36,-115,-70,-392,-395,-372,-387,-396,-381,-385,-377,-381,-377,-667,-655,-635,-644,-619,-622,-642,-642,-631,-621,-1004,-661,-650,-639,-645,-641,-29983,-630]} 1. e4 {[%emt 0:00:09]} e5 {[%emt 0:00:09]} 2. Nf3 {[%emt 0:00:06]} Nc6 {[%emt 0:00:05]} 3. Bb5 {[%emt 0:00:12]} a6 {[%emt 0:00:10]} 4. Ba4 {[%emt 0:00:05]} Nf6 {[%emt 0:00:08]} 5. O-O {[%emt 0:00:06]} Be7 {[%emt 0:00:09]} 6. Re1 {[%emt 0:00:14]} b5 {[%emt 0:00:12]} 7. Bb3 {[%emt 0:00:05]} O-O {[%emt 0:00:14]} 8. c3 {[%emt 0:00:13]} d5 {[%emt 0:01:12]} 9. exd5 {[%emt 0:00:16]} Nxd5 {[%emt 0:00:05]} 10. Nxe5 {[%emt 0:00:09]} Nxe5 {[%emt 0:00:20]} 11. Rxe5 {[%emt 0:00:07]} Bb7 {[%emt 0:00:29]} 12. d4 {[%emt 0:08:06]} Bf6 {[%emt 0:00:28] C89: Closed Ruy Lopez: Marshall Attack.} 13. Re1 {[%emt 0:00:56]} Re8 {[%emt 0:00:34]} 14. a4 {[%emt 0:02:18]} ({Better is} 14. Rxe8+ $14 Qxe8 15. Bd2) 14... b4 $11 {[%emt 0:22:23] The position is equal.} 15. a5 $146 {[%emt 0:12:49]} ({Predecessor:} 15. Bd2 a5 16. Qf3 Rxe1+ 17. Bxe1 Rb8 18. Qg3 Qd7 19. Bc2 g6 20. h3 Re8 21. Bd2 {½-½ Kreuzholz,M (2345)-Rabiega,R (2545) BL2-Nord 0708 2007 (9.1)}) 15... Qd6 {[%emt 0:09:13]} 16. g3 {[%emt 0:16:36]} (16. Bd2 $11 {keeps the balance.}) 16... bxc3 $1 $17 {[%emt 0:11:23]} 17. bxc3 {[%emt 0:01:25]} c5 {[%emt 0:03:40]} 18. Ra2 {[%emt 0:27:10]} cxd4 {[%emt 0:07:20]} 19. cxd4 {[%emt 0:00:09]} Rxe1+ {[%emt 0:04:34]} 20. Qxe1 {[%emt 0:00:08]} Qc6 {[%emt 0:07:24]} (20... Bxd4 $17 21. Qe4 Bf6) 21. Rc2 $15 {[%emt 0:05:59]} Qb5 {[%emt 0:01:43][%cal Of6d4][%mdl 1024] Black has compensation.} 22. Re2 {[%emt 0:01:46]} h5 $40 {[%emt 0:03:55][%cal Of6d4][%mdl 128] Black mounts an attack. Black is more active.} (22... Qxb3 23. Re8+ Rxe8 24. Qxe8#) 23. Nd2 $2 {[%emt 0:09:17][%mdl 8192] Loses the game.} (23. Qd1 $1 $15) 23... Nc3 $19 {[%emt 0:06:37]} (23... Qxa5 24. Re8+ Kh7 25. Rxa8 Bxa8 26. Qe8 $16) (23... Bxd4 24. Nf3 Bf6 (24... Bxf2+ 25. Kxf2 Qxb3 26. Re8+ Rxe8 27. Qxe8+ Kh7 28. Ng5+ Kh6 29. Nxf7+ Kh7 30. Ng5+ Kh6 31. Qe6+ g6 32. Ne4+ Kg7 33. Qe5+ Kf7 34. Nd6+ Kg8 35. Qe8+ Kh7 36. Qf7+ Kh8 37. Qf8+ Kh7 38. Qh6+ Kg8 39. Qxg6+ Kh8 40. Nf7#) 25. Nd2 $19) 24. Re3 {[%emt 0:01:32]} Qc6 {[%emt 0:02:33]} (24... Bxd4 25. Re7 Rf8 26. Bc2 $19) 25. Nf3 {[%emt 0:02:49] [#]} Bxd4 {[%emt 0:02:26]} 26. Bb2 {[%emt 0:00:50] and Bxf7+ would now be decisive} (26. Bxf7+ Kxf7 27. Re7+ Kg8 28. Rxb7 Qxf3) 26... Bxe3 {[%emt 0:02:01]} 27. Bxf7+ {[%emt 0:00:18]} Kf8 {[%emt 0:06:03]} 28. Bxh5 {[%emt 0:01:34] [#]} (28. Ba3+ Bc5 (28... Kxf7 $2 29. Ne5+ Kg8 30. Nxc6 $18) 29. Bxc5+ Qxc5 30. Ne5 Qxa5 31. Bb3) 28... Bd4 $1 {[%emt 0:00:27][%cal Of8g8][%mdl 512] aiming for ...Kg8!.} 29. Ba3+ {[%emt 0:01:09]} Kg8 {[%emt 0:00:40]} 30. Qe7 {[%emt 0:01:11]} Bf6 {[%emt 0:01:21]} 31. Qf7+ {[%emt 0:00:34]} Kh8 {[%emt 0:00:04]} 32. Bg4 {[%emt 0:01:18]} Qd5 {[%emt 0:01:49]} 33. Qg6 {[%emt 0:00:49]} Ne2+ {[%emt 0:01:25]} (33... Qxa5 $2 34. Bf5 $18) 34. Kf1 {[%emt 0:01:03]} Nd4 {[%emt 0:01:20] Prevents Bf5.} (34... Qxa5 $2 {is the wrong capture.} 35. Bf5 Nxg3+ (35... Bxf3 36. Qh7#) 36. hxg3 Qb5+ (36... Qxa3 37. Qh7#) 37. Kg1 $18 (37. Bd3 Qxd3+ 38. Qxd3 Rd8 $18)) 35. Nxd4 {[%emt 0:00:52]} Bxd4 {[%emt 0:00:23]} 36. f3 {[%emt 0:00:35]} Bf6 {[%emt 0:01:07] Weighted Error Value: White=0.83/Black=0.07 (flawless)   Loses game:     	White=1     	---        Mistake:       	White=4     	Black=1      Inaccurate:     	---       	Black=2      OK:         	White=5     	Black=5      Best:        	White=1     	Black=4      Strong:       	---       	Black=1      Brilliant:      	---       	Black=2} (36... Qxa5 37. Bf5 Qb5+ (37... Qxa3 38. Qh7#) 38. Bd3 $18) (36... Qc4+ $142 37. Ke1 Rd8 38. Bd6 Qc1+ (38... Bc3+ $2 39. Kf2 $19) 39. Ke2 Qe3+ 40. Kd1 Bc6 (40... Bxf3+ $2 41. Bxf3 Qxf3+ 42. Kd2 $19) 41. Qh5+ Kg8 42. Bf5 Qg1+ (42... Rxd6 {leads to mate.} 43. Qh7+ Kf8 44. Qh8+ Ke7 45. Qh4+ Bf6+ 46. Bd3 Bxf3+ 47. Kc2 Qxd3+ 48. Kc1 Qd1#) (42... Bxf3+ 43. Qxf3 Qxf3+ 44. Kd2 Rxd6 45. Bh7+ Kxh7 46. Kc2 Rc6+ 47. Kd2 Qe3+ 48. Kd1 Rc1#) 43. Kd2 Qf2+ (43... Rxd6 44. Qh7+ Kf8 45. Qh8+ Ke7 46. Qh4+ Bf6+ 47. Bd3 Qf2+ 48. Kc1 Qe1+ 49. Kc2 Qc3+ 50. Kd1 Bxf3#) (43... Be3+ 44. Kd3 Rxd6+ 45. Kc4 Qc1+ 46. Kb3 Bd5+ 47. Ka4 Qc4+ 48. Ka3 Bc1#) 44. Kc1 Qb2+ (44... Rxd6 45. Bh7+ Kf8 46. Qf5+ Ke7 47. Qg5+ Bf6 48. Qxf6+ gxf6 49. Bc2 Rd2 50. h3 Rxc2+ 51. Kb1 Ra2 52. h4 Qc2#) 45. Kd1 Ba4+ (45... Rxd6 46. Qh7+ Kf7 47. Qh5+ Ke7 48. Qg5+ Bf6+ 49. Bd3 Rxd3+ 50. Ke1 Bxg5 51. g4 Bh4+ 52. Kf1 Qf2#) 46. Bc2 Qxc2+ 47. Ke1 Qf2#) 0-1